[Event "Benidorm Open-B 2022"]
[Site "Benidorm"]
[Date "2022.12.06"]
[Round "5.13"]
[White "Sai Hrushikesh Simhdri"]
[Black "Ionita, Emilian-Paul"]
[Result "1-0"]
[ECO "B77"]
[WhiteElo "1460"]
[BlackElo "1919"]
[Annotator "TA"]
[PlyCount "193"]
[EventDate "2022.12.03"]
[EventType "swiss"]
[EventCountry "ESP"]
[SourceTitle "playchess.com"]
[Source "ChessBase"]
[SourceQuality "1"]
[TimeControl "5400+30"]

{[%evp 23,193,37,56,0,0,0,-13,-39,39,53,39,0,17,19,18,-21,-17,-19,-29,-25,-20,-77,-21,-22,-9,-41,0,0,11,0,0,-30,-23,-29,-37,-69,-3,-7,-7,-3,0,0,16,-13,0,-10,-10,-10,0,0,0,0,0,0,0,0,0,0,0,0,0,0,0,-134,0,0,0,0,0,0,0,0,8,8,8,8,8,8,8,8,1490,8,1543,8,1236,0,8,0,1162,0,1482,0,8,0,1371,8,78,0,1183,0,1183,0,78,78,1114,8,1286,93,734,0,1072,0,1135,0,6187,117,113,0,5193,8,177,8,19,19,490,8,8,8,8,8,8,0,1046,0,6219,0,1019,0,5642,5514,29968,29970,29970,29971,29972,29973,29972,29974,29975,29976,29976,29977,29977,29978,29978,29978,29979,29979,29982,29983,29983,29984,29984,29981,29981,29982,29982,29982,29982,29983,29983,29984]} 1. e4 c5 2. Nf3 d6 3. d4 cxd4 4. Nxd4 Nf6 {[%cal Bg8f6,Bf6d7,Bd7b6,Bb6c4][%mdl 32]} 5. Nc3 g6 6. Be3 Bg7 7. f3 Nc6 8. Bc4 O-O 9. Qd2 Nd7 10. O-O-O Nb6 11. Bb3 Na5 12. Qe2 Bd7 13. g4 {B77: Sicilian Dragon: Yugoslav Attack, 9 Bc4 sidelines.} (13. h4 $14) 13... Rc8 {[%cal Oc8c3]} 14. Kb1 Nbc4 {[%cal Ob7b5]} 15. Bc1 {[#] Inhibits b5. The position is equal.} Qb6 $146 (15... e6 $15) ({Predecessor:} 15... a6 16. Bxc4 Nxc4 17. h4 e6 18. h5 Qb6 19. Nb3 g5 20. Bxg5 Nxb2 21. Kxb2 Rxc3 {1-0 (36) Vitova,A (1734)-Jares,M (1893) Czech Republic 2019}) 16. Nd5 $14 {[%csl LRb6,LRe7]} Qd8 17. c3 e6 {Inhibits h4.} 18. Ne3 {[%cal Rb3c4]} Nxb3 19. Nxb3 (19. axb3 $5 {[%cal Re3c4]} Nxe3 20. Bxe3 $11) 19... Bb5 {[%cal Oc4a3]} 20. Nxc4 Bxc4 {This pair of bishops is nice.} 21. Qe3 Qc7 22. Nd4 (22. Nd2 $11) 22... a5 (22... d5 $1 $17) 23. Rhe1 $11 Rfd8 24. h4 a4 25. Nc2 $1 Qc5 26. Na3 Ba6 27. Qxc5 dxc5 28. Rxd8+ Rxd8 29. c4 b6 (29... Rd3 $15 30. Be3 Bd4 31. Bxd4 Rxd4) 30. Kc2 Bd4 31. Be3 e5 32. Bxd4 (32. Bg5 $5 {[%cal Rg5d8]} Rd6 33. Be7 $11) 32... Rxd4 {[%mdl 4096] Endgame KRB-KRN} 33. Rd1 Kf8 34. Rxd4 exd4 {KB-KN} 35. Kd3 {Prevents f5.} Ke7 36. f4 Bc8 37. g5 Bh3 38. b3 axb3 39. axb3 Bf1+ 40. Kd2 Bg2 41. Kd3 Bf3 42. Nb5 Kd7 43. b4 (43. e5 $11) 43... Bd1 (43... Bg2 $1 $17 {[%cal Rg2f1] aiming for ...Bf1+.} 44. Nxd4 (44. bxc5 $2 bxc5 45. Na3 Ke6 $19) 44... cxd4 45. Kxd4 Kc6) 44. Kd2 Ba4 45. bxc5 bxc5 46. Kd3 Bb3 47. e5 Bd1 48. Nd6 Bf3 $1 {Inhibits Nb7.} 49. Nxf7 Bg2 50. Nd6 Bf1+ 51. Kd2 {Hoping for f5.} Bg2 $2 {[%mdl 8192]} (51... Ke6 $11) 52. Ke2 $2 (52. f5 $1 $18 Bf3 53. f6) 52... Bh1 $2 {[%mdl 8192]} (52... Ke6 $11) 53. Kf2 $2 (53. f5 $18 Bg2 54. Kf2) 53... Bc6 $2 {[%mdl 8192]} (53... Ke6 $11) 54. Nf7 $2 (54. f5 $18 gxf5 55. h5) 54... Be4 55. Nd6 $2 {[%mdl 8192]} (55. Ke2 $11) 55... Bc6 $1 $18 56. Ke2 $2 (56. f5 $18) 56... Bg2 $2 {[%mdl 8192]} (56... Bh1 $11) 57. Kd3 $2 ({White has to play} 57. f5 $1 $18 {[%cal Rf5f6]} gxf5 58. h5) 57... Bf1+ $11 58. Kd2 $2 {[%mdl 8192]} (58. Kc2 $11 Ke6 59. Kd2) 58... Bg2 $18 59. Kc2 $2 (59. f5 $1 $18 gxf5 60. h5) 59... Bf3 (59... Ke6 $1 $11 {remains equal.}) 60. Kb3 ({Better is} 60. Kd3 $16) 60... Bc6 $2 {[%mdl 8192]} (60... Ke7 $11) 61. Kc2 $2 (61. f5 $1 $18 Bg2 62. f6) 61... Bg2 $2 {[%mdl 8192]} (61... Bf3 $11) 62. Nb5 $2 (62. f5 $1 $18 gxf5 63. h5) 62... Bf3 (62... Bf1 $11) 63. Kd2 $16 Bg2 $2 {[%mdl 8192]} (63... Kc6 $16) 64. Nd6 $2 (64. f5 $1 $18 Bh3 65. f6) 64... Bc6 $2 {[%mdl 8192]} (64... Ke6 $11) 65. Kd3 $2 (65. f5 $1 $18 {[%cal Rf5f6] and the rest is easy.}) 65... Bg2 $2 {[%mdl 8192]} (65... Bf3 $16) 66. Kd2 Bc6 67. Ke2 Bg2 68. Kf2 $2 (68. f5 $1 $18 {[%cal Rf5f6] f6 is the strong threat.} gxf5 69. h5) 68... Bh1 $2 {[%mdl 8192]} (68... Bc6 $11) 69. Nb5 $2 (69. f5 $18 {[%cal Oh4h5] is the precise move to win. White threatens h5! and mate.} gxf5 70. h5) 69... Be4 {Against h5} 70. Nd6 ({White must play} 70. Ke2 $16) 70... Bh1 $2 {[%mdl 8192]} (70... Bc6 $11) 71. Kg3 $2 (71. f5 $18 {Strongly threatening f6.} gxf5 72. h5) 71... Bc6 $2 {[#]} (71... Ke6 $11) 72. Nb5 $2 (72. f5 $1 $18 {[%cal Rf5f6]} gxf5 73. h5) 72... Be4 73. Kf2 {Black must now prevent Nd6.} Bc6 $2 {[%mdl 8192] [#]} (73... Ke6 $11 {and Black is okay.}) 74. Na7 $2 (74. f5 $1 $18 {[%cal Rf5f6] And now f6 would win.} gxf5 75. h5) 74... Be4 $11 75. Ke2 {Prevents Bd3+.} Bg2 76. Nb5 {[%cal Of4f5] Threatens to win with f5!} Be4 $1 {Inhibits f5.} 77. Nd6 Bc6 $2 {[%mdl 8192] White now steadily converts the win.} (77... Bg2 $11) 78. Kf2 (78. f5 $142 gxf5 79. h5) 78... Bh1 $18 79. Ke2 $2 (79. f5 $18 {[%cal Oh4h5] h5! would kill now.} gxf5 80. h5) 79... Bc6 $2 {[%mdl 8192] Prevents h5.} (79... Bg2 $11) 80. Kf2 (80. f5 $142) 80... Bh1 81. f5 gxf5 82. h5 {[%cal Bh4h5,Bh5g6][%mdl 32] White mates.} Ke7 83. g6 hxg6 84. hxg6 Kf8 85. e6 Kg7 86. e7 Bc6 87. e8=Q Bxe8 88. Nxe8+ Kxg6 {KN-K3P} 89. Nd6 f4 90. Ne4 Kf5 91. Nxc5 {KN-KPP} Ke5 92. Nd3+ Ke4 93. Ke2 f3+ 94. Kd2 Kf5 95. c5 Ke6 96. Ke1 Kd5 97. Kf2 {Weighted Error Value: White=0.78/Black=0.19 (very precise)} 1-0

[Event "Benidorm Open-B 2022"]
[Site "Benidorm"]
[Date "2022.12.06"]
[Round "5.14"]
[White "Ruiz Ureta, Ernesto"]
[Black "Skielnik, Joseph J"]
[Result "0-1"]
[ECO "D04"]
[WhiteElo "1937"]
[BlackElo "1797"]
[Annotator "TA"]
[PlyCount "85"]
[EventDate "2022.12.03"]
[EventType "swiss"]
[EventCountry "ESP"]
[SourceTitle "playchess.com"]
[Source "ChessBase"]
[SourceQuality "1"]
[TimeControl "5400+30"]

{[%evp 9,85,26,22,21,27,-16,-4,0,16,1,27,0,0,0,0,-16,0,-31,0,-15,0,-25,-1,-11,-6,-28,-26,-98,-89,-140,-95,-135,-110,-119,-87,-81,-69,-127,-120,-118,-89,-234,-196,-322,-318,-314,-289,-306,-304,-272,-243,-279,-276,-273,-261,-259,-160,-187,-176,-238,-226,-223,0,-269,-256,-322,-322,-509,-319,-683,-318,-516,-524,-1120,-1116,-29993,-29994,-29994]} 1. d4 d5 2. Nf3 Nf6 3. e3 Bf5 4. Nh4 e6 5. Nxf5 exf5 6. Bd3 {D04: Colle System.} g6 7. Nd2 Nbd7 {[%cal Bb8d7,Bd7b6,Bb6d5][%mdl 32]} 8. O-O {The position is equal.} Bg7 {[#]} 9. c4 $146 ({Predecessor:} 9. c3 c6 10. f3 O-O 11. e4 fxe4 12. fxe4 dxe4 13. Nxe4 Nxe4 14. Bxe4 Qb6 15. Kh1 {½-½ (35) Bracco,V (1400)-Scovazzi,T (1643) Milan 2015}) 9... O-O 10. cxd5 Nb6 11. Nf3 Nbxd5 12. Bd2 Re8 13. Rc1 Ne4 14. Bc4 c6 15. a4 Qe7 16. a5 a6 17. Qb3 Rad8 18. Bxd5 (18. Rfd1 $11) 18... Rxd5 $17 19. Rc2 {Against f4} (19. Bc3 $142) 19... Rb5 20. Qc4 Rd8 {[%cal Be8d8,Bd8d5,Bd5d4,Bd4e4][%mdl 32]} 21. Ra1 Rdd5 22. Be1 g5 23. Nd2 (23. Bc3 $15) 23... Nd6 {Black is much more active.} 24. Qd3 f4 25. Nb1 (25. Rac1 $17 {is a better defense.}) 25... fxe3 26. fxe3 {[#]} (26. Qxe3 {was necessary.} Qd8 27. Qc1) 26... Rxd4 $3 {[%mdl 512]} 27. Qe2 Re4 28. Bf2 Re6 29. Nc3 Bxc3 30. bxc3 Ne4 31. c4 Rbe5 32. Be1 Kg7 33. Rb1 Kg6 34. g4 (34. Bb4 {keeps fighting.} c5 35. Be1) 34... Nc5 35. Bd2 Ne4 $2 (35... Re4 $19 {And now ...Kg7 would win.} 36. Kh1 Kg7) 36. Bc1 $2 {[%mdl 8192]} (36. Be1 $1 $11 {and White stays safe.}) 36... Rxa5 $19 {[%cal Be5a5,Ba5a1,Ba1c1,Bc1c2][%mdl 32]} 37. Qd3 Rd6 38. Qf1 (38. Qe2 {is the only way for White.}) 38... Qf6 39. Qe2 $2 (39. Rxb7 Ra1 40. Qf5+ Qxf5 41. gxf5+ Kxf5 42. Rxf7+ Kg6 43. Rf1) 39... Qe6 (39... Nc3 $142 40. Rxc3 Qxc3) 40. Rxb7 $2 (40. Bb2) 40... Ra1 {Threatens to win with ...Nc5.} 41. Kg2 {[#]} Rxc1 $1 {[%mdl 512]} 42. Rb8 (42. Rbb2 Rdd1) 42... Rxc2 43. Rg8+ {Weighted Error Value: White=0.92/Black=0.35} 0-1

[Event "Benidorm Open-B 2022"]
[Site "Benidorm"]
[Date "2022.12.06"]
[Round "5.15"]
[White "Kane, Robert"]
[Black "Lopez Palomar, Jose"]
[Result "1-0"]
[ECO "E70"]
[WhiteElo "1738"]
[BlackElo "1913"]
[Annotator "TA"]
[PlyCount "58"]
[EventDate "2022.12.03"]
[EventType "swiss"]
[EventCountry "ESP"]
[SourceTitle "playchess.com"]
[Source "ChessBase"]
[SourceQuality "1"]
[TimeControl "5400+30"]

{[%evp 14,58,46,43,64,48,75,68,72,70,94,95,104,105,89,23,122,120,236,221,240,241,381,360,343,354,433,434,519,533,623,629,602,602,904,979,1286,1253,1731,1614,2156,2080,2281,2192,1997,1973,29990]} 1. d4 Nf6 2. c4 g6 3. Nc3 Bg7 4. e4 d6 5. Nge2 O-O 6. Ng3 e5 7. d5 Nbd7 8. Be2 Ne8 {E70: King's Indian: Miscellaneous lines with 4 e4, including 5 Nge2 and 5 Bd3 0-0 6 Nge2.} 9. h4 f5 10. exf5 gxf5 {White is slightly better.} 11. Nh5 Ndf6 12. Nxg7 {White is more active.} Nxg7 {[#]} 13. Bg5 $146 ({Predecessor:} 13. h5 f4 14. g4 fxg3 15. fxg3 Nf5 16. g4 Ng3 17. Rg1 Nfe4 18. Nxe4 Nxe4 19. g5 {1-0 (53) Danada,T (2116)-Diviak,R (1955) Slovakia 2015}) 13... Qd7 14. h5 (14. Qd2 $16) 14... Nge8 {White now steadily converts the win.} (14... f4 $1 $11 {keeps the balance.}) 15. Qd2 $36 {[%mdl 2048] White is in control.} Kf7 (15... a6 $16 {was necessary.} 16. O-O-O Qf7) 16. O-O-O Rg8 17. f4 b5 (17... e4 {is a better defense.} 18. b3 c5) 18. cxb5 $18 ({Not} 18. Nxb5 Ne4 19. Qe3 Nxg5 $16) 18... e4 19. Qd4 Qe7 20. h6 {White is clearly winning.} Qf8 21. g4 {[%cal Bg2g4,Bg4g5][%mdl 32]} Rg6 22. Bxf6 Nxf6 23. g5 Nd7 24. Bh5 a6 25. Nxe4 fxe4 26. f5 {[%mdl 64] [#] Pin} Ne5 27. fxg6+ Kg8 28. gxh7+ Kxh7 29. Rdf1 Qg8 {Weighted Error Value: White=0.07 (flawless) /Black=0.67} 1-0

[Event "Benidorm Open-B 2022"]
[Site "Benidorm"]
[Date "2022.12.08"]
[Round "6.1"]
[White "Goktepe, Derin"]
[Black "Aadith R"]
[Result "1-0"]
[ECO "E18"]
[WhiteElo "1828"]
[BlackElo "1714"]
[Annotator "NA RC COMBH"]
[PlyCount "100"]
[EventDate "2022.12.03"]
[EventType "swiss"]
[EventCountry "ESP"]
[SourceTitle "playchess.com"]
[Source "ChessBase"]
[SourceQuality "1"]
[TimeControl "5400+30"]

1. d4 Nf6 2. c4 e6 3. Nf3 b6 4. g3 Bb7 5. Bg2 Be7 6. O-O O-O 7. Nc3 c5 8. d5 d6 9. e4 Re8 10. Qc2 Nbd7 11. Nd2 h5 12. dxe6 fxe6 13. e5 Bxg2 14. exf6 Bxf1 15. fxe7 Qxe7 16. Nxf1 Ne5 17. Qe4 Rf8 18. f4 Ng4 19. Ne3 Nf6 20. Qd3 Rad8 21. Bd2 d5 22. cxd5 exd5 23. Re1 Qf7 24. Ng2 Rfe8 25. Re5 Rxe5 26. fxe5 Ng4 27. Bf4 g5 28. e6 Qxe6 29. Bxg5 Rd7 30. h3 Ne5 31. Qe2 d4 32. Ne4 d3 33. Qxh5 Rh7 34. Nf6+ Qxf6 35. Qxh7+ Kxh7 36. Bxf6 d2 37. Ne3 Nc4 38. Nd1 b5 39. Kf2 Nd6 40. Ke2 a5 41. Be5 Nc4 42. Bc3 Nd6 43. Bxd2 b4 44. Bf4 Nf5 45. Ne3 Nd4+ 46. Kd3 a4 47. Kc4 Ne2 48. Kxc5 a3 49. bxa3 bxa3 50. Kb4 Nd4 1-0

[Event "Benidorm Open-B 2022"]
[Site "Benidorm"]
[Date "2022.12.08"]
[Round "6.2"]
[White "Mallevaey, Guillaume"]
[Black "Tsiapko, Andrii"]
[Result "1/2-1/2"]
[ECO "A22"]
[WhiteElo "1761"]
[BlackElo "1619"]
[Annotator "NA RC COMBH"]
[PlyCount "114"]
[EventDate "2022.12.03"]
[EventType "swiss"]
[EventCountry "ESP"]
[SourceTitle "playchess.com"]
[Source "ChessBase"]
[SourceQuality "1"]
[TimeControl "5400+30"]

1. c4 e5 2. g3 Nf6 3. Nc3 d5 4. cxd5 Nxd5 5. Bg2 Nb6 6. Nf3 Nc6 7. O-O Be7 8. d3 Be6 9. Be3 Nd5 10. Nxd5 Bxd5 11. Rc1 O-O 12. a3 Re8 13. Qa4 Bf6 14. Rfe1 a6 15. Qc2 Qd7 16. Nd2 Bxg2 17. Kxg2 Qd5+ 18. Ne4 Be7 19. Qc4 Qxc4 20. Rxc4 f5 21. Nc5 Bxc5 22. Rxc5 Rad8 23. b4 Rd7 24. b5 axb5 25. Rxb5 b6 26. Rc1 Re6 27. Rb2 Na7 28. Bg5 Nc8 29. Be3 Ne7 30. Bg5 Nc8 31. a4 h6 32. Bd2 Ne7 33. a5 bxa5 34. Bxa5 c6 35. Rbc2 Kf7 36. Bb4 Nd5 37. Bc5 e4 38. dxe4 Rxe4 39. e3 Re6 40. Bd4 Ne7 41. Rc5 Rd5 42. Rxd5 Nxd5 43. Ra1 g5 44. Ra8 Re8 45. Ra6 Rc8 46. Bc5 Ke6 47. Ra7 Nc7 48. Bb6 Kd6 49. Ra5 Nd5 50. Bc5+ Ke6 51. f3 Nf6 52. Kf2 Rb8 53. Bd4 Nd7 54. e4 fxe4 55. fxe4 Nf6 56. Bxf6 Kxf6 57. Rc5 Rb2+ 1/2-1/2

[Event "Benidorm Open-B 2022"]
[Site "Benidorm"]
[Date "2022.12.08"]
[Round "6.3"]
[White "Ingham, H William"]
[Black "Saez Gabikagogeaskoa, Oscar"]
[Result "0-1"]
[ECO "D05"]
[WhiteElo "1831"]
[BlackElo "1941"]
[Annotator "TA"]
[PlyCount "94"]
[EventDate "2022.12.03"]
[EventType "swiss"]
[EventCountry "ESP"]
[SourceTitle "playchess.com"]
[Source "ChessBase"]
[SourceQuality "1"]
[TimeControl "5400+30"]

{[%evp 21,94,18,27,0,0,0,0,0,0,0,18,-16,-12,-13,-15,-5,0,0,0,0,0,-46,-37,-56,-11,-37,-26,-180,37,-183,-183,-183,-177,-170,-71,-50,-57,-60,-54,-59,-62,-97,-101,-116,-65,-113,-104,-383,-362,-430,-407,-955,-922,-996,-977,-964,-906,-818,-637,-588,-365,-575,-550,-532,-523,-664,-453,-12835,-1456,-12839,-12839,-29993,-29994,-29995,-29996]} 1. d4 Nf6 2. Nf3 d5 3. e3 e6 4. Bd3 Nbd7 5. O-O c5 6. c3 Bd6 7. Nbd2 O-O 8. e4 dxe4 9. Nxe4 Nxe4 10. Bxe4 Nf6 11. Bc2 h6 12. Qe2 {D05: Colle System with ...e6.} b6 13. Be3 Qe7 {[#]} 14. Rad1 $146 {The position is equal.} ({Predecessor:} 14. dxc5 Bxc5 15. Bxc5 Qxc5 16. Rad1 Bb7 17. Ne5 Rfd8 18. Ng4 Qg5 19. Nxf6+ Qxf6 20. Be4 Bxe4 21. Qxe4 Qe7 22. Qf3 Rac8 23. g3 {½-½ (23) Igaz,P-Neber,A (2080) Hungary 1998}) 14... Bb7 15. Ne5 Rad8 16. Ng4 (16. Rfe1 {keeps more tension.} Rfe8 17. a3 cxd4 18. Bxd4 Bc5 19. Bxc5 Qxc5 20. c4) 16... Nxg4 17. Qxg4 f5 18. Qh3 Rf6 19. dxc5 bxc5 20. f4 Rg6 {[%cal Oe7h4] Hoping for ...Qh4!} 21. g3 {Against Qh4} (21. Rf2 $1 $11) 21... Qc7 (21... Qe8 {looks sharper.} 22. Bd3 Kh7 23. Kf2 Qa4) 22. Rf2 Be7 {Threatening ...Qc6.} 23. Rxd8+ Qxd8 24. Qh5 $2 (24. Rd2 $11 {and White has nothing to worry.} Qe8 25. Kf2) 24... Qe8 $2 (24... Qd5 $1 $19 {[%csl Gb7][%cal Rd5h1]} 25. Kf1 Qh1+ 26. Ke2 Kh7) 25. Qe2 $2 ({Don't play} 25. Kf1 Qb5+ 26. Ke1 Rf6 $11) (25. Bd1 $14 {keeps the upper hand.}) 25... Qc6 $19 {[%csl Gb7][%cal Rc6h1]} 26. Rg2 h5 $40 {[%mdl 128] Black attacks with force.} (26... Qxg2+ 27. Qxg2 Bxg2 28. Kxg2 $17) 27. Kf1 h4 (27... Qxg2+ $19 {is more deadly.} 28. Qxg2 Bxg2+ 29. Kxg2 Kf7) 28. Rg1 $17 hxg3 29. hxg3 Rh6 30. Ke1 Ba6 {Prevents g4.} 31. Qg2 Qb5 32. Bd1 Bb7 (32... Qd3 $17 33. Qd2 Qb1) 33. Qf2 (33. Qe2 $15 Qb6 34. Bb3) 33... Bd5 {Black is more active.} 34. b3 $2 {[%mdl 8192]} (34. Qe2 $17 {might work better.} Qxe2+ 35. Bxe2) 34... Qa5 $19 35. Qd2 {[#]} Bf6 $1 36. b4 (36. Qb2 $142) 36... Qa3 ({Inferior is} 36... Qxa2 37. Qxa2 Bxa2 38. Kf2 $17) 37. Bb3 Bxb3 38. axb3 Qxb3 39. Kf1 cxb4 ({Stronger than} 39... Qxc3 40. Qxc3 Bxc3 41. bxc5 $15) 40. cxb4 Qb1+ 41. Kg2 (41. Qe1 {was the only defense.} Qb3 42. Qe2) 41... Qe4+ 42. Kf1 Qc4+ 43. Kg2 Be7 44. Bxa7 (44. Rf1 $142 Bxb4 45. Qc1 Qe4+ 46. Rf3) 44... Bxb4 (44... Qc6+ $142 45. Kf1 Qa6+ 46. Qe2 Qxa7) 45. Qd8+ Kh7 {( -> ...Qe2+)} 46. Qd4 Qc6+ 47. Kf1 {[#]} Rh2 $1 {Weighted Error Value: White=1.04/Black=0.53} 0-1

[Event "Benidorm Open-B 2022"]
[Site "Benidorm"]
[Date "2022.12.08"]
[Round "6.4"]
[White "Swapna C N"]
[Black "Pajuelo Morales, Raul"]
[Result "0-1"]
[ECO "A48"]
[WhiteElo "1481"]
[BlackElo "1890"]
[Annotator "NA RC COMBH"]
[PlyCount "64"]
[EventDate "2022.12.03"]
[EventType "swiss"]
[EventCountry "ESP"]
[SourceTitle "playchess.com"]
[Source "ChessBase"]
[SourceQuality "1"]
[TimeControl "5400+30"]

1. d4 Nf6 2. Nf3 g6 3. Bg5 Bg7 4. Nbd2 d5 5. e3 O-O 6. Bd3 c5 7. c3 Nc6 8. Qe2 Qb6 9. Rb1 Re8 10. Bb5 Bf5 11. Rc1 c4 12. Bxc6 bxc6 13. b3 Bd3 14. Qd1 Nd7 15. Ng1 h6 16. Bh4 e5 17. Ne2 f5 18. Bg3 f4 19. Nxf4 exf4 20. Bxf4 g5 21. Bg3 c5 22. Qf3 Nf6 23. Be5 Ne4 24. Bxg7 Kxg7 25. dxc5 Qxc5 26. b4 Qd6 27. Nxe4 Rxe4 28. g3 Rf8 29. Qg2 d4 30. cxd4 Qxb4+ 31. Kd1 Qa4+ 32. Ke1 Qxa2 0-1

[Event "Benidorm Open-B 2022"]
[Site "Benidorm"]
[Date "2022.12.08"]
[Round "6.5"]
[White "Selva Salvador, Antonio"]
[Black "Pedraza Fernandez, Miguel Angel"]
[Result "0-1"]
[ECO "A45"]
[WhiteElo "1954"]
[BlackElo "1784"]
[Annotator "TA"]
[PlyCount "139"]
[EventDate "2022.12.03"]
[EventType "swiss"]
[EventCountry "ESP"]
[SourceTitle "playchess.com"]
[Source "ChessBase"]
[SourceQuality "1"]
[TimeControl "5400+30"]

{[%evp 9,139,8,58,31,75,61,67,68,44,0,0,0,7,-28,0,0,0,-31,26,16,14,30,36,0,0,0,0,0,7,-13,-14,-26,-29,-66,-66,-72,-40,-42,-33,-38,-54,-61,-25,-86,-82,-85,-63,-87,-47,-87,-72,-87,-27,-72,0,-23,-24,-24,-30,-30,-31,-43,-50,-138,-128,-165,-150,-214,-205,-231,-218,-220,-214,-252,-253,-264,-214,-377,-331,-339,-335,-306,-204,-188,-194,-341,-335,-302,-192,-191,-190,-186,-173,-177,-173,-192,-183,-356,-150,-141,-139,-394,-398,-397,-388,-412,-394,-420,-387,-381,-301,-540,-540,-540,-490,-564,-560,-840,-688,-745,-625,-29971,-29973,-29973,-29974,-29978,-29979,-29979,-29980,-29982,-29983,-29983]} 1. d4 Nf6 2. Bf4 g6 3. Nc3 d6 4. Qd2 Bg7 5. O-O-O O-O (5... c6 $11) 6. Bh6 {A45: Trompowsky Attack.} Nbd7 7. h4 {[#]} c5 $146 ({Predecessor:} 7... Bxh6 8. Qxh6 Ng4 9. Qf4 h5 10. Nh3 e5 11. dxe5 dxe5 12. Qe4 Qe7 13. Nd5 Qd6 {1-0 (45) Biza,M (1760)-Horvath,T (1985) Orlova 2017}) 8. Bxg7 {White is slightly better.} Kxg7 9. f3 cxd4 10. Qxd4 Qb6 11. Qd2 {[%cal Oh4h5]} (11. Qxb6 {simplifies} Nxb6 12. g4 Bd7 13. e4) 11... Ne5 {Prevents h5. aiming for ...Nc4.} 12. e4 {[%cal Oh4h5]} h5 13. Nh3 Be6 (13... Bxh3 $15 14. Rxh3 Rfc8) 14. Nf4 Bc4 15. b3 Be6 16. Nfd5 (16. Nxe6+ {simplifies} fxe6 17. Ne2 Nfd7 18. Nf4) 16... Nxd5 17. Nxd5 Bxd5 18. exd5 Qc5 19. Qd4 (19. Be2 {looks sharper.} Rac8 20. Kb2 b5 21. f4) 19... Rfc8 {[%csl Gc8][%cal Rc5c2]} 20. Qxc5 Rxc5 21. Rd2 b5 {Black is more active.} 22. Be2 b4 23. Re1 a5 24. f4 Nd7 25. Bf3 Kf8 26. Rde2 (26. f5 $1 $11 {keeps the balance.}) 26... Re8 $17 27. Rd2 Nb6 28. Kb2 {[%cal Of4f5]} Ra8 29. Rd4 {[%cal Of4f5]} Rac8 30. Re2 {[%cal Of4f5]} Rb5 {Prevents f5.} (30... Kg7 $17) 31. Red2 {[%cal Of4f5]} Nd7 (31... f5 $17) 32. g4 hxg4 33. Bxg4 f5 34. Be2 Rbc5 35. h5 Nf6 36. Ba6 (36. hxg6 $15 Ne4 37. Rxe4 (37. Ba6 Ra8 $17) 37... fxe4 38. Bg4) 36... Ra8 $1 $36 {[%mdl 2048] White is under strong pressure.} 37. Bb7 Rb8 38. Bc6 (38. Ba6 $17) 38... Nxh5 $19 ({Weaker is} 38... gxh5 39. Re2) 39. a3 Nf6 {Against Bd7} 40. axb4 axb4 41. Rh2 Kg7 {Against Rh8} 42. Rh1 Rc3 43. Ra1 $2 (43. Rxb4 {might work better.} Rxc2+ 44. Kxc2 Rxb4 45. Re1) 43... Re3 44. Ra7 Kf7 45. Bd7 Re4 46. Be6+ Kf8 47. Rd1 (47. Rxe4 {was the only defense.} Nxe4 48. Kc1) 47... Rxf4 48. Rh1 Nh5 49. Rg1 Rg4 50. Rxg4 fxg4 51. Bxg4 {[%mdl 4096] Endgame KRB-KRN} Nf4 52. Ra5 Kf7 53. c4 $2 (53. c3) 53... Nd3+ (53... Rh8 $19 {and Black stays clearly on top.} 54. Rb5 g5 55. Be6+ Kf6) 54. Kc2 $17 {[#]} Nc5 {Hoping for ...Rh8.} 55. Ra1 $2 {[%mdl 8192] Loses the game.} (55. Rb5 $17 Rxb5 56. cxb5) 55... Rh8 $19 {White must now prevent ...Rh2+.} 56. Rf1+ Kg7 57. Rf2 Ra8 {( -> ...Ra2+)} 58. Rf3 Ra2+ 59. Kb1 Rd2 60. Be6 $2 (60. Rg3 {was called for.}) 60... Nxe6 61. dxe6 {[#] KR-KR} g5 $1 {[%cal Bg6g5,Bg5g4,Bg4g3,Bg3g2][%mdl 32]} 62. Rf7+ Kg6 63. Rxe7 Kf6 64. Rb7 Kxe6 {Threatens to win with ...g4.} 65. Rxb4 g4 {Black mates.} 66. c5 g3 ({Not} 66... dxc5 67. Rxg4 Rh2 68. Kc1 $11) 67. cxd6 g2 {[%cal Rg2g1]} 68. Re4+ Kxd6 69. Rg4 Rd1+ 70. Kc2 {Weighted Error Value: White=0.37/Black=0.20 (precise)} 0-1

[Event "Benidorm Open-B 2022"]
[Site "Benidorm"]
[Date "2022.12.08"]
[Round "6.6"]
[White "Martinez Dourado, Daniel"]
[Black "Sai Hrushikesh Simhdri"]
[Result "0-1"]
[ECO "B90"]
[WhiteElo "1837"]
[BlackElo "1460"]
[Annotator "NA RC COMBH"]
[PlyCount "60"]
[EventDate "2022.12.03"]
[EventType "swiss"]
[EventCountry "ESP"]
[SourceTitle "playchess.com"]
[Source "ChessBase"]
[SourceQuality "1"]
[TimeControl "5400+30"]

1. e4 c5 2. Nf3 d6 3. d4 cxd4 4. Nxd4 Nf6 5. Nc3 a6 6. Be3 e5 7. Nb3 Be6 8. f3 Be7 9. Qd2 h5 10. O-O-O Nbd7 11. Kb1 Qc7 12. h3 Rc8 13. f4 b5 14. Bd3 Bc4 15. Rhg1 exf4 16. Bxf4 Ne5 17. Ne2 O-O 18. Ned4 g6 19. Qe2 Rfe8 20. g4 hxg4 21. hxg4 Bf8 22. Bg5 Nh7 23. Be3 Bg7 24. Nf5 gxf5 25. gxf5 Kf8 26. Qh5 Nf6 27. Qg5 Bh8 28. Nd4 Ke7 29. b3 Bxd3 30. cxd3 Qc3 0-1